fUST/lending_fUST_20250203
["ID","MTS","AMOUNT","RATE_DAILY","PERIOD"]
[351340476,1738521049335,-500.0,0.00016986,2]
[351340477,1738521049347,-582.37,0.00016986,2]
[351340478,1738521049357,-500.0,0.00016986,2]
[351340479,1738521049367,-500.0,0.00016986,2]
[351340480,1738521049377,-2001.96,0.00016986,2]
[351340481,1738521049387,-500.0,0.00016986,2]
[351340482,1738521049398,-500.0,0.00016986,2]
[351340483,1738521049408,-3070.12,0.00016986,2]
[351340484,1738521049418,-500.0,0.00016986,2]
[351340485,1738521049427,-500.0,0.00016986,2]
[351340486,1738521049437,-500.0,0.00016986,2]
[351340487,1738521049447,-500.0,0.00016986,2]
[351340488,1738521049456,-500.0,0.00016986,2]
[351340489,1738521049466,-500.0,0.00016986,2]
[351340490,1738521049477,-258.75642312,0.00016986,2]
[351340493,1738521134917,168.475967,0.00013699,2]
[351340495,1738521256819,1000.0,0.00017,17]
[351340498,1738521554548,269.559052,0.00013973,2]
[351340570,1738522236541,-500.0,0.00015753,2]
[351340572,1738522236551,-153.0,0.00016176,2]
[351340574,1738522236561,-153.0,0.00016178,2]
[351340575,1738522236571,-1414.8545,0.0001625,2]
[351340578,1738522236583,-472.13189728,0.0001625,2]
[351340579,1738522236592,-182.72319128,0.00016338,2]
[351340581,1738522236602,-318.89491144,0.00016437,2]
[351340583,1738522236614,-22.24594615,0.00016437,2]
[351340584,1738522236624,-447.24268038,0.00016437,2]
[351340585,1738522236683,-52.75731962,0.00016437,2]
[351340586,1738522236693,-500.0,0.00016437,2]
[351340587,1738522236703,-495.05592078,0.00016437,2]
[351340588,1738522236713,-500.0,0.00016438,2]
[351340589,1738522236722,-73.5503834,0.00016438,2]
[351340590,1738522236734,-421.10135406,0.00016438,2]
[351340591,1738522236815,-5.34826254,0.00016438,2]
[351340592,1738522236824,-500.0,0.00016438,2]
[351340593,1738522236835,-171.93475503,0.00016438,2]
[351340594,1738522236845,-645.01125921,0.00016438,2]
[351340595,1738522236855,-500.0,0.00016438,2]
[351340596,1738522236866,-613.93480986,0.00016438,2]
[351340597,1738522236875,-514.53042832,0.00016438,2]
[351340599,1738522236885,-500.0,0.00016438,2]
[351340601,1738522236899,-394.70611812,0.00016438,2]
[351340602,1738522236914,-105.29388188,0.00016438,2]
[351340603,1738522236924,-500.0,0.00016438,2]
[351340604,1738522236934,-500.0,0.00016438,2]
[351340605,1738522236944,-506.07222546,0.00016438,2]
[351340606,1738522236955,-500.0,0.00016438,2]
[351340607,1738522236964,-509.88848356,0.00016438,2]
[351340608,1738522236974,-500.0,0.00016438,2]
[351340609,1738522236984,-500.0,0.00016438,2]
[351340610,1738522236994,-410.87524537,0.00016438,2]
[351340611,1738522237003,-500.0,0.00016438,2]
[351340612,1738522237013,-500.0,0.00016438,2]
[351340613,1738522237022,-500.0,0.00016438,2]
[351340614,1738522237032,-500.0,0.00016438,2]
[351340615,1738522237043,-500.0,0.00016438,2]
[351340616,1738522237052,-500.0,0.00016438,2]
[351340617,1738522237062,-500.0,0.00016438,2]
[351340618,1738522237071,-202.61316505,0.00016438,2]
[351340619,1738522237081,-500.0,0.00016438,2]
[351340620,1738522237092,-500.0,0.00016438,2]
[351340621,1738522237102,-500.0,0.00016438,2]
[351340622,1738522237111,-500.0,0.00016438,2]
[351340623,1738522237121,-500.0,0.00016438,2]
[351340624,1738522237131,-500.0,0.00016438,2]
[351340625,1738522237146,-500.0,0.00016438,2]
[351340626,1738522237157,-533.64812888,0.00016438,2]
[351340627,1738522237167,-500.0,0.00016438,2]
[351340628,1738522237177,-500.0,0.00016438,2]
[351340629,1738522237187,-500.0,0.00016438,2]
[351340630,1738522237197,-500.0,0.00016438,2]
[351340631,1738522237206,-561.41303953,0.00016438,2]
[351340632,1738522237216,-500.0,0.00016438,2]
[351340633,1738522237226,-500.0,0.00016438,2]
[351340634,1738522237236,-500.0,0.00016438,2]
[351340635,1738522237246,-500.0,0.00016438,2]
[351340636,1738522237256,-500.0,0.00016438,2]
[351340637,1738522237266,-500.0,0.00016438,2]
[351340638,1738522237276,-500.0,0.00016438,2]
[351340639,1738522237286,-500.0,0.00016438,2]
[351340640,1738522237296,-500.0,0.00016438,2]
[351340641,1738522237306,-500.0,0.00016438,2]
[351340642,1738522237316,-500.0,0.00016438,2]
[351340643,1738522237325,-162.62,0.00016438,2]
[351340644,1738522237335,-500.0,0.00016438,2]
[351340645,1738522237345,-500.0,0.00016438,2]
[351340646,1738522237354,-500.0,0.00016438,2]
[351340647,1738522237364,-500.0,0.00016438,2]
[351340648,1738522237374,-500.0,0.00016438,2]
[351340650,1738522237384,-500.0,0.00016438,2]
[351340652,1738522237398,-500.0,0.00016438,2]
[351340654,1738522237407,-500.0,0.00016438,2]
[351340656,1738522237417,-500.0,0.00016438,2]
[351340658,1738522237427,-500.0,0.00016438,2]
[351340660,1738522237436,-500.0,0.00016438,2]
[351340662,1738522237446,-553.17055382,0.00016438,2]
[351340663,1738522237456,-503.39767878,0.00016438,2]
[351340664,1738522237465,-500.0,0.00016438,2]
[351340665,1738522237475,-500.0,0.00016438,2]
[351340666,1738522237485,-500.0,0.00016438,2]
[351340667,1738522237495,-500.0,0.00016438,2]
[351340668,1738522237506,-500.0,0.00016438,2]
[351340669,1738522237516,-500.0,0.00016438,2]
[351340670,1738522237527,-500.0,0.00016438,2]
[351340672,1738522237538,-500.0,0.00016438,2]
[351340674,1738522237547,-500.0,0.00016438,2]
[351340676,1738522237557,-500.0,0.00016438,2]
[351340678,1738522237567,-500.0,0.00016438,2]
[351340686,1738522237686,-500.0,0.00016438,2]
[351340687,1738522237696,-579.61,0.00016438,2]
[351340689,1738522237705,-538.62,0.00016438,2]
[351340691,1738522237715,-500.0,0.00016438,2]
[351340692,1738522237725,-500.0,0.00016438,2]
[351340694,1738522237735,-500.0,0.00016438,2]
[351340696,1738522237745,-500.0,0.00016438,2]
[351340697,1738522237754,-500.0,0.00016438,2]
[351340698,1738522237764,-500.0,0.00016438,2]
[351340699,1738522237774,-757.31,0.00016438,2]
[351340701,1738522237784,-500.0,0.00016438,2]
[351340703,1738522237793,-500.0,0.00016438,2]
[351340705,1738522237803,-318.31178811,0.00016438,2]
[351340707,1738522237813,-500.0,0.00016438,2]
[351340709,1738522237822,-500.0,0.00016438,2]
[351340710,1738522237834,-500.0,0.00016438,2]
[351340711,1738522237844,-500.0,0.00016438,2]
[351340713,1738522237854,-500.0,0.00016438,2]
[351340715,1738522237866,-500.0,0.00016438,2]
[351340716,1738522237876,-500.0,0.00016438,2]
[351340717,1738522237885,-500.0,0.00016438,2]
[351340718,1738522237898,-663.7,0.00016438,2]
[351340719,1738522237907,-500.0,0.00016438,2]
[351340720,1738522237918,-354.28823897,0.00016438,2]
[351340721,1738522237928,-500.50059647,0.00016438,2]
[351340722,1738522237939,-500.0,0.00016438,2]
[351340723,1738522237949,-500.0,0.00016438,2]
[351340724,1738522237959,-500.0,0.00016438,2]
[351340725,1738522237970,-500.0,0.00016438,2]
[351340726,1738522237980,-500.0,0.00016438,2]
[351340727,1738522237990,-500.0,0.00016438,2]
[351340728,1738522238000,-500.0,0.00016438,2]
[351340729,1738522238011,-500.0,0.00016438,2]
[351340730,1738522238021,-166.83298434,0.00016438,2]
[351340731,1738522238032,-500.0,0.00016438,2]
[351340733,1738522238043,-500.0,0.00016438,2]
[351340735,1738522238052,-500.0,0.00016438,2]
[351340737,1738522238061,-1566.64,0.00016438,2]
[351340739,1738522238072,-1224.68,0.00016438,2]
[351340741,1738522238081,-500.0,0.00016438,2]
[351340743,1738522238090,-500.0,0.00016438,2]
[351340745,1738522238100,-500.0,0.00016438,2]
[351340747,1738522238110,-500.0,0.00016438,2]
[351340749,1738522238120,-500.0,0.00016438,2]
[351340751,1738522238129,-1127.57,0.00016438,2]
[351340752,1738522238139,-500.0,0.00016438,2]
[351340753,1738522238153,-526.98,0.00016438,2]
[351340754,1738522238162,-327.89361599,0.00016438,2]
[351340755,1738522238331,-172.10638401,0.00016438,2]
[351340756,1738522238344,-500.0,0.00016438,2]
[351340757,1738522238354,-500.0,0.00016438,2]
[351340758,1738522238364,-500.0,0.00016438,2]
[351340759,1738522238373,-1758.44,0.00016438,2]
[351340760,1738522238383,-500.0,0.00016438,2]
[351340761,1738522238398,-500.0,0.00016438,2]
[351340762,1738522238410,-500.0,0.00016438,2]
[351340763,1738522238420,-500.0,0.00016438,2]
[351340764,1738522238430,-2732.56,0.00016438,2]
[351340765,1738522238440,-500.0,0.00016438,2]
[351340766,1738522238450,-500.0,0.00016438,2]
[351340767,1738522238460,-500.0,0.00016438,2]
[351340768,1738522238470,-500.0,0.00016438,2]
[351340769,1738522238480,-500.0,0.00016438,2]
[351340770,1738522238490,-500.0,0.00016438,2]
[351340771,1738522238501,-395.31835985,0.00016438,2]
[351340772,1738522238510,-503.89275078,0.00016438,2]
[351340773,1738522238520,-500.0,0.00016438,2]
[351340774,1738522238530,-503.65557835,0.00016438,2]
[351340775,1738522238540,-500.0,0.00016438,2]
[351340776,1738522238550,-500.0,0.00016438,2]
[351340777,1738522238560,-8385.37092832,0.00016438,2]
[351340778,1738522238573,-841.838724,0.00016438,2]
[351340779,1738522238585,-2921.3,0.00016438,2]
[351340780,1738522238597,-10540.88034768,0.00016438,2]
[351340781,1738522238607,-500.0,0.00016438,2]
[351340782,1738522238617,-500.0,0.00016438,2]
[351340783,1738522238626,-500.0,0.00016438,2]
[351340784,1738522238636,-500.0,0.00016438,2]
[351340785,1738522238650,-500.0,0.00016438,2]
[351340786,1738522238660,-500.0,0.00016438,2]
[351340787,1738522238669,-500.0,0.00016438,2]
[351340788,1738522238679,-500.0,0.00016438,2]
[351340789,1738522238689,-637.33,0.00016438,2]
[351340790,1738522238699,-500.0,0.00016438,2]
[351340791,1738522238708,-7865.91,0.00016438,2]
[351340792,1738522238717,-500.0,0.00016438,2]
[351340793,1738522238727,-500.0,0.00016438,2]
[351340794,1738522238736,-255.94390894,0.00016438,2]
[351340795,1738522238746,-500.0,0.00016438,2]
[351340796,1738522238755,-930.04,0.00016438,2]
[351340797,1738522238765,-500.0,0.00016438,2]
[351340798,1738522238774,-358.57398539,0.00016438,2]
[351340799,1738522238784,-2114.4,0.00016438,2]
[351340800,1738522238793,-500.0,0.00016438,2]
[351340801,1738522238802,-500.0,0.00016438,2]
[351340802,1738522238812,-3605.5,0.00016438,2]
[351340803,1738522238821,-500.0,0.00016438,2]
[351340804,1738522238833,-500.0,0.00016438,2]
[351340805,1738522238842,-230.94,0.00016438,2]
[351340806,1738522238851,-500.0,0.00016438,2]
[351340807,1738522238864,-500.0,0.00016438,2]
[351340808,1738522238873,-1206.9,0.00016438,2]
[351340809,1738522238883,-9193.84,0.00016438,2]
[351340810,1738522238896,-855.02,0.00016438,2]
[351340811,1738522238906,-500.0,0.00016438,2]
[351340812,1738522238915,-500.0,0.00016438,2]
[351340813,1738522238924,-500.0,0.00016438,2]
[351340814,1738522238935,-568.31187269,0.00016438,2]
[351340815,1738522238945,-500.0,0.00016438,2]
[351340816,1738522238956,-500.0,0.00016438,2]
[351340817,1738522238966,-500.0,0.00016438,2]
[351340818,1738522238976,-500.0,0.00016438,2]
[351340819,1738522238986,-500.0,0.00016438,2]
[351340820,1738522238995,-500.0,0.00016438,2]
[351340821,1738522239006,-445.30346811,0.00016438,2]
[351340822,1738522239016,-297.46369107,0.00016438,2]
[351340823,1738522239025,-500.0,0.00016438,2]
[351340824,1738522239036,-500.0,0.00016438,2]
[351340825,1738522239046,-1965.25,0.00016438,2]
[351340826,1738522239056,-500.0,0.00016438,2]
[351340827,1738522239066,-500.0,0.00016438,2]
[351340828,1738522239076,-500.0,0.00016438,2]
[351340829,1738522239086,-500.0,0.00016438,2]
[351340830,1738522239096,-500.0,0.00016438,2]
[351340831,1738522239105,-506.69,0.00016438,2]
[351340832,1738522239116,-500.0,0.00016438,2]
[351340833,1738522239126,-500.0,0.00016438,2]
[351340834,1738522239136,-500.0,0.00016438,2]
[351340835,1738522239148,-500.0,0.00016438,2]
[351340836,1738522239158,-500.0,0.00016438,2]
[351340837,1738522239168,-1877.07,0.00016438,2]
[351340838,1738522239178,-509.0451226,0.00016438,2]
[351340839,1738522239188,-902.54,0.00016438,2]
[351340840,1738522239198,-500.0,0.00016438,2]
[351340841,1738522239208,-500.0,0.00016438,2]
[351340842,1738522239218,-500.0,0.00016438,2]
[351340843,1738522239227,-500.0,0.00016438,2]
[351340844,1738522239239,-500.0,0.00016438,2]
[351340845,1738522239249,-500.0,0.00016438,2]
[351340846,1738522239259,-500.0,0.00016438,2]
[351340847,1738522239268,-1000.0,0.00016438,7]
[351340848,1738522239280,-500.0,0.00016438,2]
[351340849,1738522239290,-500.0,0.00016438,2]
[351340850,1738522239300,-500.0,0.00016438,2]
[351340851,1738522239310,-500.0,0.00016438,2]
[351340852,1738522239320,-500.0,0.00016438,2]
[351340854,1738522239331,-500.0,0.00016438,2]
[351340856,1738522239341,-4745.23,0.00016438,2]
[351340857,1738522239351,-500.0,0.00016438,2]
[351340858,1738522239361,-500.0,0.00016438,2]
[351340860,1738522239371,-500.0,0.00016438,2]
[351340862,1738522239381,-500.0,0.00016438,2]
[351340863,1738522239390,-500.0,0.00016438,2]
[351340864,1738522239403,-500.0,0.00016438,2]
[351340865,1738522239412,-500.0,0.00016438,2]
[351340866,1738522239422,-500.0,0.00016438,2]
[351340867,1738522239432,-602.08,0.00016438,2]
[351340868,1738522239442,-500.0,0.00016438,2]
[351340871,1738522239451,-500.0,0.00016438,2]
[351340873,1738522239462,-802.17,0.00016438,2]
[351340874,1738522239471,-1796.65,0.00016438,2]
[351340876,1738522239481,-500.0,0.00016438,2]
[351340878,1738522239491,-2034.11,0.00016438,2]
[351340879,1738522239501,-506.96306323,0.00016438,2]
[351340881,1738522239511,-500.0,0.00016438,2]
[351340882,1738522239520,-200.0,0.00016438,2]
[351340884,1738522239530,-500.0,0.00016438,2]
[351340887,1738522239540,-500.0,0.00016438,2]
[351340889,1738522239550,-500.0,0.00016438,2]
[351340891,1738522239560,-602.05126369,0.00016438,2]
[351340894,1738522239570,-500.0,0.00016438,2]
[351340897,1738522239580,-500.0,0.00016438,2]
[351340898,1738522239590,-727.7,0.00016438,2]
[351340899,1738522239599,-2191.32,0.00016438,2]
[351340900,1738522239609,-500.0,0.00016438,2]
[351340901,1738522239618,-500.0,0.00016438,2]
[351340903,1738522239628,-182.72319121,0.00016561,2]
[351340904,1738522239637,-464.52416201,0.00016574,2]
[351340906,1738522239661,-242.88827225,0.00016574,2]
[351340908,1738522239671,-151.0,0.00016575,2]
[351340910,1738522239681,-151.0,0.00016575,2]
[351340912,1738522239691,-151.0,0.00016575,2]
[351340913,1738522239701,-151.0,0.00016575,2]
[351340914,1738522239711,-500.0,0.00016575,2]
[351340915,1738522239722,-500.0,0.00016575,2]
[351340916,1738522239732,-500.0,0.00016575,2]
[351340917,1738522239743,-500.0,0.00016575,2]
[351340922,1738522239891,-500.0,0.00016575,2]
[351340923,1738522239905,-500.0,0.00016575,2]
[351340924,1738522239915,-500.0,0.00016575,2]
[351340925,1738522239925,-500.0,0.00016575,2]
[351340927,1738522239936,-500.0,0.00016575,2]
[351340929,1738522239946,-500.0,0.00016575,2]
[351340930,1738522239955,-500.0,0.00016575,2]
[351340931,1738522239966,-552.16297817,0.00016575,2]
[351340932,1738522239976,-500.0,0.00016575,2]
[351340933,1738522239987,-500.0,0.00016575,2]
[351340934,1738522239997,-500.0,0.00016575,2]
[351340935,1738522240007,-500.0,0.00016575,2]
[351340936,1738522240016,-500.0,0.00016575,2]
[351340938,1738522240026,-500.0,0.00016575,2]
[351340940,1738522240037,-500.0,0.00016575,2]
[351340941,1738522240047,-500.0,0.00016575,2]
[351340942,1738522240057,-500.0,0.00016575,2]
[351340943,1738522240067,-500.0,0.00016575,2]
[351340944,1738522240077,-455.96,0.00016575,2]
[351340945,1738522240087,-445.64791625,0.00016575,2]
[351340946,1738522240096,-500.0,0.00016575,2]
[351340947,1738522240106,-500.0,0.00016575,2]
[351340948,1738522240116,-500.0,0.00016575,2]
[351340949,1738522240126,-500.0,0.00016575,2]
[351340950,1738522240136,-278.63897959,0.00016575,2]
[351340951,1738522240152,-500.0,0.00016575,2]
[351340952,1738522240162,-500.0,0.00016575,2]
[351340953,1738522240172,-500.0,0.00016575,2]
[351340954,1738522240181,-500.0,0.00016575,2]
[351340956,1738522240191,-579.61,0.00016575,2]
[351340957,1738522240201,-538.62,0.00016575,2]
[351340958,1738522240211,-500.0,0.00016575,2]
[351340959,1738522240221,-500.0,0.00016575,2]
[351340961,1738522240231,-500.0,0.00016575,2]
[351340962,1738522240241,-500.0,0.00016575,2]
[351340963,1738522240251,-500.0,0.00016575,2]
[351340964,1738522240260,-500.0,0.00016575,2]
[351340965,1738522240269,-500.0,0.00016575,2]
[351340966,1738522240278,-500.0,0.00016575,2]
[351340967,1738522240288,-757.31,0.00016575,2]
[351340968,1738522240298,-500.0,0.00016575,2]
[351340969,1738522240308,-500.0,0.00016575,2]
[351340970,1738522240318,-500.0,0.00016575,2]
[351340971,1738522240327,-500.0,0.00016575,2]
[351340972,1738522240337,-500.0,0.00016575,2]
[351340973,1738522240346,-500.0,0.00016575,2]
[351340974,1738522240356,-500.0,0.00016575,2]
[351340975,1738522240365,-663.7,0.00016575,2]
[351340976,1738522240375,-500.0,0.00016575,2]
[351340977,1738522240384,-500.0,0.00016575,2]
[351340978,1738522240396,-500.0,0.00016575,2]
[351340979,1738522240405,-500.0,0.00016575,2]
[351340980,1738522240415,-500.0,0.00016575,2]
[351340981,1738522240424,-500.0,0.00016575,2]
[351340982,1738522240433,-500.0,0.00016575,2]
[351340983,1738522240443,-500.0,0.00016575,2]
[351340984,1738522240453,-1566.64,0.00016575,2]
[351340985,1738522240462,-1224.68,0.00016575,2]
[351340986,1738522240472,-500.0,0.00016575,2]
[351340987,1738522240482,-500.0,0.00016575,2]
[351340988,1738522240491,-500.0,0.00016575,2]
[351340989,1738522240501,-1127.57,0.00016575,2]
[351340990,1738522240511,-500.0,0.00016575,2]
[351340991,1738522240521,-526.98,0.00016575,2]
[351340992,1738522240530,-500.0,0.00016575,2]
[351340993,1738522240539,-500.0,0.00016575,2]
[351340994,1738522240549,-1758.44,0.00016575,2]
[351340995,1738522240558,-500.0,0.00016575,2]
[351340996,1738522240567,-500.0,0.00016575,2]
[351340997,1738522240576,-500.0,0.00016575,2]
[351340998,1738522240586,-606.38337412,0.00016575,2]
[351340999,1738522240596,-2732.56,0.00016575,2]
[351341000,1738522240605,-500.0,0.00016575,2]
[351341001,1738522240615,-500.0,0.00016575,2]
[351341002,1738522240624,-500.0,0.00016575,2]
[351341003,1738522240633,-500.0,0.00016575,2]
[351341004,1738522240645,-500.0,0.00016575,2]
[351341005,1738522240654,-500.0,0.00016575,2]
[351341006,1738522240664,-500.0,0.00016575,2]
[351341007,1738522240673,-500.0,0.00016575,2]
[351341008,1738522240682,-500.0,0.00016575,2]
[351341009,1738522240692,-22689.39,0.00016575,2]
[351341010,1738522240702,-500.0,0.00016575,2]
[351341011,1738522240711,-247.16530172,0.00016575,2]
[351341012,1738522240720,-500.0,0.00016575,2]
[351341013,1738522240729,-500.0,0.00016575,2]
[351341014,1738522240739,-500.0,0.00016575,2]
[351341015,1738522240748,-500.0,0.00016575,2]
[351341016,1738522240757,-637.33,0.00016575,2]
[351341017,1738522240767,-7865.91,0.00016575,2]
[351341018,1738522240777,-500.0,0.00016575,2]
[351341019,1738522240787,-500.0,0.00016575,2]
[351341020,1738522240797,-930.04,0.00016575,2]
[351341021,1738522240807,-500.0,0.00016575,2]
[351341022,1738522240817,-2114.4,0.00016575,2]
[351341023,1738522240828,-500.0,0.00016575,2]
[351341024,1738522240838,-500.0,0.00016575,2]
[351341025,1738522240847,-3605.5,0.00016575,2]
[351341026,1738522240857,-500.0,0.00016575,2]
[351341027,1738522240868,-561.64264187,0.00016575,2]
[351341028,1738522240878,-500.0,0.00016575,2]
[351341029,1738522240887,-500.0,0.00016575,2]
[351341030,1738522240901,-1206.9,0.00016575,2]
[351341031,1738522240911,-9193.84,0.00016575,2]
[351341032,1738522240921,-855.02,0.00016575,2]
[351341033,1738522240931,-500.0,0.00016575,2]
[351341034,1738522240941,-500.0,0.00016575,2]
[351341035,1738522240952,-500.0,0.00016575,2]
[351341036,1738522240962,-500.0,0.00016575,2]
[351341037,1738522240972,-1965.25,0.00016575,2]
[351341038,1738522240981,-500.0,0.00016575,2]
[351341039,1738522240990,-237.15453713,0.00016575,2]
[351341040,1738522241000,-500.0,0.00016575,2]
[351341041,1738522241009,-500.0,0.00016575,2]
[351341042,1738522241019,-474.70454211,0.00016575,2]
[351341043,1738522241028,-506.69,0.00016575,2]
[351341044,1738522241038,-500.0,0.00016575,2]
[351341045,1738522241047,-500.0,0.00016575,2]
[351341046,1738522241057,-509.19385276,0.00016575,2]
[351341047,1738522241066,-1877.07,0.00016575,2]
[351341048,1738522241076,-902.54,0.00016575,2]
[351341049,1738522241085,-500.0,0.00016575,2]
[351341050,1738522241095,-500.0,0.00016575,2]
[351341051,1738522241105,-506.95022981,0.00016575,2]
[351341052,1738522241114,-500.0,0.00016575,2]
[351341053,1738522241123,-500.0,0.00016575,2]
[351341054,1738522241133,-506.6143364,0.00016575,2]
[351341055,1738522241146,-1000.0,0.00016575,7]
[351341056,1738522241156,-223.62874659,0.00016575,2]
[351341057,1738522241166,-500.0,0.00016575,2]
[351341058,1738522241175,-500.0,0.00016575,2]
[351341059,1738522241184,-500.0,0.00016575,2]
[351341060,1738522241194,-500.0,0.00016575,2]
[351341061,1738522241204,-4745.23,0.00016575,2]
[351341062,1738522241214,-500.0,0.00016575,2]
[351341063,1738522241224,-500.0,0.00016575,2]
[351341064,1738522241233,-500.0,0.00016575,2]
[351341065,1738522241243,-500.0,0.00016575,2]
[351341066,1738522241252,-500.0,0.00016575,2]
[351341067,1738522241262,-500.0,0.00016575,2]
[351341068,1738522241271,-271.42458975,0.00016575,2]
[351341069,1738522241280,-602.08,0.00016575,2]
[351341070,1738522241290,-500.0,0.00016575,2]
[351341071,1738522241299,-500.0,0.00016575,2]
[351341072,1738522241309,-802.17,0.00016575,2]
[351341073,1738522241318,-1796.65,0.00016575,2]
[351341074,1738522241328,-500.0,0.00016575,2]
[351341075,1738522241337,-2034.11,0.00016575,2]
[351341076,1738522241346,-500.0,0.00016575,2]
[351341077,1738522241356,-200.0,0.00016575,2]
[351341078,1738522241366,-500.0,0.00016575,2]
[351341079,1738522241376,-500.0,0.00016575,2]
[351341080,1738522241386,-500.0,0.00016575,2]
[351341081,1738522241399,-500.0,0.00016575,2]
[351341082,1738522241408,-500.0,0.00016575,2]
[351341083,1738522241418,-727.7,0.00016575,2]
[351341084,1738522241428,-2191.32,0.00016575,2]
[351341085,1738522241437,-500.0,0.00016575,2]
[351341086,1738522241446,-500.0,0.00016575,2]
[351341087,1738522241457,-37044.3218052,0.00016612,2]
[351341088,1738522241467,-500.0,0.00016712,2]
[351341089,1738522241476,-500.0,0.00016712,2]
[351341090,1738522241485,-500.0,0.00016712,2]
[351341091,1738522241495,-500.0,0.00016712,2]
[351341092,1738522241504,-506.45,0.00016712,2]
[351341093,1738522241513,-500.0,0.00016712,2]
[351341094,1738522241522,-500.0,0.00016712,2]
[351341095,1738522241532,-500.0,0.00016712,2]
[351341096,1738522241542,-204.85,0.00016712,2]
[351341097,1738522241553,-500.0,0.00016712,2]
[351341098,1738522241562,-500.0,0.00016712,2]
[351341099,1738522241572,-500.0,0.00016712,2]
[351341100,1738522241582,-500.0,0.00016712,2]
[351341101,1738522241591,-629.06932102,0.00016712,2]
[351341102,1738522241600,-500.0,0.00016712,2]
[351341103,1738522241609,-500.0,0.00016712,2]
[351341104,1738522241618,-500.0,0.00016712,2]
[351341105,1738522241626,-500.0,0.00016712,2]
[351341106,1738522241636,-500.0,0.00016712,2]
[351341107,1738522241648,-500.0,0.00016712,2]
[351341108,1738522241657,-500.0,0.00016712,2]
[351341109,1738522241667,-500.0,0.00016712,2]
[351341110,1738522241676,-500.0,0.00016712,2]
[351341111,1738522241685,-500.0,0.00016712,2]
[351341112,1738522241695,-522.38312463,0.00016712,2]
[351341113,1738522241704,-579.61,0.00016712,2]
[351341114,1738522241713,-538.62,0.00016712,2]
[351341115,1738522241721,-500.0,0.00016712,2]
[351341116,1738522241731,-500.0,0.00016712,2]
[351341117,1738522241816,-500.0,0.00016712,2]
[351341118,1738522241838,-500.0,0.00016712,2]
[351341119,1738522241848,-500.0,0.00016712,2]
[351341120,1738522241861,-500.0,0.00016712,2]
[351341121,1738522241873,-757.31,0.00016712,2]
[351341122,1738522241883,-502.92290859,0.00016712,2]
[351341123,1738522241893,-500.0,0.00016712,2]
[351341124,1738522241909,-500.0,0.00016712,2]
[351341125,1738522241920,-411.50978824,0.00016712,2]
[351341126,1738522241930,-500.0,0.00016712,2]
[351341127,1738522241942,-357.94840149,0.00016712,2]
[351341128,1738522241952,-663.7,0.00016712,2]
[351341129,1738522241961,-31.93663837,0.00016712,2]
[351341130,1738522241979,-468.06336163,0.00016712,2]
[351341131,1738522241989,-500.0,0.00016712,2]
[351341132,1738522241998,-500.0,0.00016712,2]